bitfinex-derivatives/quotes_ETHF0:USTF0_20241230
["timestamp","ask_amount","ask_price","bid_price","bid_amount"]
[1735558178289,5.50951121,3421.8,3421.2,9.72437526]
[1735558178489,0.2928,3421.4,3421.3,0.29281]
[1735558178690,0.2928,3421.5,3421.3,0.29281]
[1735558179493,5.50951121,3421.8,3421.3,4.98369582]
[1735558179683,0.2928,3421.4,3421.3,4.98369582]
[1735558180592,0.2928,3421.4,3421.3,4.69088582]
[1735558180891,0.2928,3421.4,3421.3,4.98369582]
[1735558181091,0.2928,3421.4,3421.3,4.69088582]
[1735558181589,0.2928,3421.4,3421.3,4.98369582]
[1735558182588,0.2928,3421.4,3421.3,4.69088582]
[1735558183595,3.5006,3421.4,3421.3,4.69088582]
[1735558186094,3.2078,3421.4,3421.3,4.69088582]
[1735558186294,3.2078,3421.4,3421.3,4.98369582]
[1735558186497,3.5006,3421.4,3421.3,4.98369582]
[1735558187993,3.5006,3421.4,3421.3,4.69088582]
[1735558188501,0.2928,3421.4,3421.3,4.98369582]
[1735558189998,0.29279,3421.6,3421.5,0.29279]
[1735558190198,0.2928,3421.5,3421.4,0.2928]
[1735558190700,0.2928,3421.4,3421.3,4.98369582]
[1735558191300,0.2928,3421.4,3421.3,0.29281]
[1735558192600,0.2928,3421.4,3421.3,4.98059531]
[1735558194703,0.2928,3421.5,3421.4,0.2928]
[1735558195801,0.2928,3421.5,3421.4,4.98058531]
[1735558196589,0.2928,3421.5,3421.4,4.68778531]
[1735558199900,0.2928,3421.5,3421.4,4.98058531]
[1735558200704,2.30171121,3421.6,3421.5,0.2928]
[1735558201696,2.59448121,3421.8,3421.4,13.83966057]
[1735558201897,2.59448121,3421.8,3421.7,0.29278]
[1735558202098,2.30171121,3421.8,3421.7,0.29278]
[1735558202302,2.59448121,3421.8,3421.7,0.29278]
[1735558202603,2.30171121,3421.8,3421.7,0.29278]
[1735558203000,2.30171121,3421.8,3421.7,1.39358]
[1735558203201,3.45256682,3421.9,3421.7,12.68251693]
[1735558203399,3.45256682,3421.9,3421.8,0.83947]
[1735558203904,0.29277,3421.8,3421.7,11.58171693]
[1735558204099,0.88107,3421.8,3421.7,11.58171693]
[1735558204509,0.88107,3421.8,3421.7,0.29278]
[1735558204708,3.2078,3421.9,3421.8,0.29277]
[1735558205604,0.5883,3422.1,3421.7,0.5467]
[1735558205803,2.30260813,3422.0,3421.9,0.29275]
[1735558206004,2.30260813,3422.0,3421.9,2.62938756]
[1735558206201,2.30260813,3422.0,3421.9,3.17968756]
[1735558207410,5.80312813,3422.3,3422.2,0.29272]
[1735558207605,0.29273,3422.1,3422.0,0.29273]
[1735558207911,5.51040813,3422.3,3421.9,16.21198731]
[1735558208210,0.29275,3422.1,3422.0,0.29274]
[1735558208603,0.29275,3422.0,3421.9,16.21198731]
[1735558208906,5.51040813,3422.3,3421.8,9.18615924]
[1735558208907,0.29276,3421.9,3421.8,9.18615924]
[1735558209410,2.91320813,3422.2,3421.8,9.18615924]
[1735558209707,0.29275,3422.1,3421.9,0.29275]
[1735558209904,0.29275,3422.0,3421.8,9.18615924]
[1735558210100,0.29276,3421.9,3421.8,11.57881156]
[1735558211105,3.96926,3421.9,3421.8,11.57881156]
[1735558211706,0.29277,3421.7,3421.6,6.88963661]
[1735558213315,4.02426682,3421.8,3421.5,6.88963661]
[1735558213617,0.29278,3421.6,3421.5,6.88963661]
[1735558214717,2.59501511,3421.6,3421.5,11.58303179]
[1735558218015,2.59501511,3421.6,3421.5,4.69339518]
[1735558219115,7.59501511,3421.6,3421.5,4.69339518]
[1735558219315,2.59501511,3421.6,3421.5,4.69339518]
[1735558219520,3.45256682,3421.7,3421.4,6.88963661]
[1735558219828,4.07948,3421.5,3421.4,6.88963661]
[1735558220822,6.41611756,3421.5,3421.4,6.88963661]
[1735558221028,11.41611756,3421.5,3421.4,6.42153661]
[1735558221826,0.29285,3420.8,3420.7,9.18615924]
[1735558223422,0.29285,3420.8,3420.7,4.65948941]
[1735558225019,0.2929,3420.2,3420.1,0.5948]
[1735558225520,3.2078,3420.4,3420.1,0.5948]
[1735558225721,5.50908106,3420.8,3420.3,2.33663756]
[1735558225926,5.50908106,3420.8,3420.7,0.29286]
[1735558226126,3.45192159,3421.0,3420.6,2.33663756]
[1735558226328,3.45192159,3421.0,3420.9,5.83727756]
[1735558226633,0.45000265,3421.1,3421.0,0.29283]
[1735558226825,4.53204724,3421.4,3421.3,0.29281]
[1735558227026,4.53204724,3421.4,3421.0,1.191]
[1735558227323,3.59624724,3421.4,3421.3,5.83724756]
[1735558228017,3.2078,3422.4,3421.9,0.29275]
[1735558228219,0.29273,3422.2,3421.4,1.0248]
[1735558228419,0.29273,3422.2,3421.3,5.54443756]
[1735558228420,0.29273,3422.2,3421.9,0.29275]
[1735558229525,3.2078,3422.3,3421.8,0.29276]
[1735558229728,3.50053,3422.3,3422.0,0.29274]
[1735558230024,0.29273,3422.2,3421.9,0.29275]
[1735558230225,3.50053,3422.3,3421.5,9.18615924]
[1735558230420,3.2078,3422.3,3422.2,0.29273]
[1735558231423,3.2078,3422.3,3422.1,0.29274]
[1735558231726,3.50053,3422.3,3422.0,0.89284]
[1735558232122,3.50053,3422.3,3422.0,0.6001]
[1735558232123,3.2078,3422.3,3422.0,0.6001]
[1735558232323,0.29274,3422.2,3422.0,0.6001]
[1735558232940,3.2078,3422.3,3422.1,0.29274]
[1735558233356,3.2078,3422.3,3422.2,0.29273]
[1735558233937,3.2078,3422.3,3422.0,0.6001]
[1735558234139,3.2078,3422.3,3422.1,0.29274]
[1735558234335,3.2078,3422.3,3422.0,0.6001]
[1735558234549,3.2078,3422.3,3422.2,0.29274]
[1735558235247,3.2078,3422.3,3422.0,0.6001]
[1735558235457,3.50053,3422.3,3422.1,0.29274]
[1735558236745,3.2078,3422.3,3422.2,0.29274]
[1735558237143,3.7978,3422.8,3422.2,2.33663756]
[1735558237340,0.2927,3422.6,3422.4,0.29272]
[1735558237645,3.7978,3422.8,3422.2,2.92503756]
[1735558237945,0.2927,3422.6,3422.4,0.29271]
[1735558238821,3.7978,3422.8,3422.2,2.92503756]
[1735558239017,0.29271,3422.6,3422.4,0.29272]
[1735558239620,0.29271,3422.6,3422.3,0.29273]
[1735558239828,0.2927,3422.7,3422.4,0.29271]
[1735558240028,3.7978,3422.8,3422.2,2.92503756]
[1735558240336,3.7978,3422.8,3422.5,0.29271]
[1735558240522,0.2927,3422.7,3422.5,0.29271]
[1735558240829,4.09049,3422.8,3422.5,0.29271]
[1735558241035,4.09049,3422.8,3422.5,0.2927]
[1735558241333,0.2927,3422.7,3422.5,0.2927]
[1735558242332,3.2078,3422.8,3422.7,0.2927]
[1735558242928,3.2078,3422.8,3422.5,2.33663756]
[1735558242929,3.98051,3423.3,3422.6,1.19]
[1735558243134,3.68786,3423.3,3423.2,0.29265]
[1735558243338,3.9805,3423.3,3423.2,0.29265]
[1735558244031,3.68786,3423.3,3423.2,0.29265]
[1735558244231,0.48006,3423.3,3423.2,2.62928756]
[1735558245233,5.9837869,3424.0,3423.2,2.62928756]
[1735558245234,5.6911969,3424.0,3423.2,7.33663756]
[1735558245541,5.6911969,3424.0,3423.9,0.29259]
[1735558246640,0.29257,3424.2,3424.0,0.29258]
[1735558247032,3.8346,3424.6,3423.8,3.8374]
[1735558247234,0.29255,3424.4,3424.2,0.29256]
[1735558247437,3.8346,3424.6,3423.9,2.33663756]
[1735558247737,3.8346,3424.6,3424.5,0.29254]
[1735558247937,3.2078,3424.6,3424.5,0.29254]
[1735558248135,3.2078,3424.6,3424.2,2.33663756]
[1735558248437,0.29254,3424.5,3424.2,2.33663756]
[1735558248636,3.2078,3424.6,3424.5,0.29254]
[1735558248831,3.2078,3424.6,3424.2,2.33663756]
[1735558249037,3.2078,3424.6,3424.4,0.29254]
[1735558249742,3.50034,3424.6,3424.3,0.29255]
[1735558249943,3.50034,3424.6,3423.9,0.5972]
[1735558249944,0.29256,3424.4,3424.0,0.29258]
[1735558250139,3.2078,3424.6,3423.9,2.93383756]
[1735558250340,3.2078,3424.6,3424.0,0.29258]
[1735558250534,0.29258,3424.1,3423.9,2.33663756]
[1735558250738,0.29257,3424.2,3424.0,0.29258]
[1735558251837,3.2078,3424.6,3423.8,3.8374]
[1735558252034,3.2078,3424.6,3424.0,0.29258]
[1735558252235,3.2078,3424.6,3423.8,3.2078]
[1735558252442,3.06796756,3424.7,3423.4,0.6035]
[1735558252443,0.2926,3423.9,3423.7,0.29261]
[1735558252946,0.29261,3423.8,3423.6,0.29261]
[1735558253132,0.29261,3423.8,3423.5,1.2]
[1735558253337,0.2926,3423.8,3423.6,0.29262]
[1735558254234,1.7614,3424.1,3423.4,3.2078]
[1735558254435,0.29264,3423.3,3423.2,1.2]
[1735558255643,0.29264,3423.4,3423.2,1.49265]
[1735558255843,0.6101,3423.5,3423.2,1.49264]
[1735558256143,0.90273,3423.5,3423.3,0.29264]
[1735558256345,0.29264,3423.4,3423.3,0.29264]
[1735558256547,0.6101,3423.5,3423.4,0.29264]
[1735558256741,3.2078,3423.6,3423.5,0.29263]
[1735558257846,3.2078,3423.6,3423.5,0.58543]
[1735558258437,3.2078,3423.6,3423.3,2.33663756]
[1735558258644,0.29263,3423.5,3423.3,2.33663756]
[1735558258837,0.29263,3423.5,3423.4,0.29263]
[1735558259042,0.29263,3423.5,3423.2,1.4928]
[1735558259043,3.2078,3423.6,3423.2,1.2]
[1735558259251,0.29264,3423.3,3423.1,0.2928]
[1735558259551,0.29264,3423.4,3423.3,0.29264]
[1735558259743,0.29264,3423.4,3423.2,0.29265]
[1735558260153,3.2078,3423.6,3423.2,0.29265]
[1735558260451,0.29265,3423.2,3423.1,1.49266]
[1735558260647,0.29265,3423.3,3423.1,1.49266]
[1735558260845,0.6111,3423.2,3423.1,1.49266]
[1735558261045,0.6111,3423.2,3423.1,1.2]
[1735558261342,0.90375,3423.2,3423.1,1.49266]
[1735558262452,0.6111,3423.2,3422.8,4.4078]
[1735558262646,0.90376,3423.2,3423.1,0.29266]
[1735558263350,0.6111,3423.2,3423.1,0.29266]
[1735558263549,0.29268,3422.9,3422.8,4.4078]
[1735558263850,3.8189,3423.2,3422.4,5.6042]
[1735558264053,0.582,3423.1,3422.4,4.4078]
[1735558264350,0.29274,3422.2,3422.1,1.2]
[1735558266055,0.29273,3422.3,3422.2,0.29274]
[1735558266251,0.29272,3422.5,3422.3,0.29272]
[1735558266456,3.2078,3422.7,3422.1,3.53663756]
[1735558266746,0.29272,3422.5,3422.2,0.29274]
[1735558266957,3.2078,3422.7,3422.3,0.29272]
[1735558267146,0.29274,3422.2,3422.1,1.2]
[1735558267342,0.29273,3422.3,3422.2,0.29273]
[1735558267546,0.29274,3422.2,3422.1,1.49274]
[1735558267745,0.29274,3422.2,3422.1,1.2]
[1735558268147,0.29275,3422.1,3421.9,3.50056]
[1735558268353,0.29275,3422.1,3422.0,0.29275]
[1735558268354,0.5902,3422.1,3422.0,0.29275]
[1735558268544,0.29274,3422.2,3421.9,3.2078]
[1735558268748,3.2078,3422.7,3421.9,3.2078]
[1735558268955,0.29274,3422.2,3422.0,0.29275]
[1735558269155,0.29274,3422.2,3422.1,0.29274]
[1735558269356,3.2078,3422.7,3421.9,3.2078]
[1735558269854,0.29275,3422.1,3421.9,3.50056]
[1735558270153,0.5831,3422.0,3421.9,3.2078]
[1735558270350,0.87585,3422.0,3421.9,3.2078]
[1735558270955,0.87585,3422.0,3421.8,0.29277]
[1735558270956,0.29276,3421.9,3421.8,0.29277]
[1735558271150,0.87586,3422.0,3421.8,0.29277]
[1735558271745,0.5831,3422.0,3421.9,0.29276]
[1735558272950,3.2078,3422.1,3422.0,0.29275]
[1735558275855,0.29275,3422.0,3421.9,0.29276]
[1735558276253,3.50055,3422.1,3421.9,0.29276]
[1735558276451,3.50055,3422.1,3421.7,0.6234]
[1735558276452,3.2078,3422.1,3422.0,0.29275]
[1735558277350,3.2078,3422.1,3421.6,1.193]
[1735558277559,3.50054,3422.1,3422.0,0.29275]
[1735558278355,3.2078,3422.1,3422.0,0.29275]
[1735558280449,0.88123,3422.3,3421.8,5.54443756]
[1735558280450,0.5885,3422.3,3421.8,5.54443756]
[1735558280656,0.5744,3422.4,3422.3,0.29273]
[1735558281160,3.2078,3422.6,3422.5,0.29271]
[1735558281359,3.7833,3423.1,3423.0,0.29267]
[1735558281558,4.56540385,3423.5,3423.4,0.29263]
[1735558281559,7.77320385,3423.5,3423.4,0.29263]
[1735558281758,8.06583385,3423.5,3422.8,0.7317]
[1735558281958,7.77320385,3423.5,3423.4,0.29263]
[1735558282665,4.56540385,3423.5,3423.4,0.29263]
[1735558282860,3.2078,3424.1,3424.0,0.29258]
[1735558283057,3.2078,3424.1,3423.5,0.6239]
[1735558283355,5.54443756,3424.1,3423.3,3.2078]
[1735558283559,0.29264,3423.4,3423.1,0.29265]
[1735558283765,3.2078,3423.6,3422.8,3.2078]
[1735558283952,0.5979,3423.5,3422.8,3.2078]
[1735558284159,0.2927,3422.7,3422.6,1.193]
[1735558284466,3.2078,3423.1,3422.6,5.76653791]
[1735558284664,0.29267,3423.0,3422.8,0.29268]
[1735558284866,3.2078,3423.1,3422.6,5.76653791]
[1735558285053,0.29269,3422.7,3422.6,5.76653791]
[1735558285459,3.2078,3423.1,3422.6,1.193]
[1735558285660,0.29268,3422.9,3422.7,0.29269]
[1735558286072,3.2078,3423.1,3422.6,1.193]
[1735558286367,3.2078,3423.1,3423.0,0.29267]
[1735558286562,3.2078,3423.1,3422.6,1.193]
[1735558286754,0.29269,3422.7,3422.6,1.193]
[1735558287464,0.29269,3422.8,3422.7,0.29269]
[1735558287664,0.29268,3422.9,3422.7,0.29269]
[1735558288057,0.572,3422.8,3422.6,1.193]
[1735558288457,0.572,3422.8,3422.6,1.4857]
[1735558288665,0.29269,3422.7,3422.6,1.4857]
[1735558289163,0.86469,3422.8,3422.7,0.29269]
[1735558289363,0.572,3422.8,3422.6,1.4857]
[1735558289563,0.572,3422.8,3422.4,3.2078]
[1735558289755,0.29274,3422.1,3422.0,4.57353791]
[1735558289959,0.29274,3422.1,3422.0,1.72453791]
[1735558290866,0.29276,3422.0,3421.8,0.29276]
[1735558291660,3.2078,3422.5,3421.8,0.29277]
[1735558291865,0.29276,3422.0,3421.8,0.29277]
[1735558292662,3.2078,3422.5,3421.4,5.54443756]
[1735558292663,0.29277,3421.8,3421.6,0.29278]
[1735558292969,3.2078,3421.9,3421.4,3.2078]
[1735558293168,0.29279,3421.7,3421.5,0.29279]
[1735558294075,0.89217,3421.8,3421.6,0.29279]
[1735558294271,3.2078,3421.9,3421.7,0.29278]
[1735558294457,3.2078,3421.9,3421.8,0.29277]
[1735558294770,0.5994,3422.3,3422.2,0.29273]
[1735558294771,3.2078,3422.3,3422.2,0.29273]
[1735558295362,0.29271,3422.5,3421.9,1.8039]
[1735558295674,0.29273,3422.3,3422.1,0.29274]
[1735558295867,0.29274,3422.2,3422.0,0.29275]
[1735558296059,0.29275,3422.0,3421.9,1.8039]
[1735558296261,3.2078,3422.1,3421.9,1.8039]
[1735558296457,3.2078,3422.1,3422.0,0.29275]
[1735558297069,3.2078,3422.1,3421.9,1.193]
[1735558297266,0.5996,3422.0,3421.9,1.48576]
[1735558297663,3.2078,3422.1,3421.9,1.48576]
[1735558297871,0.29275,3422.0,3421.9,1.193]
[1735558298067,0.29277,3421.8,3421.6,0.29278]
[1735558298273,0.29277,3421.8,3421.6,0.29279]
[1735558298473,0.89236,3421.9,3421.7,0.29277]
[1735558298674,0.5996,3421.9,3421.5,0.6273]
[1735558298876,0.5996,3421.9,3421.8,0.29277]
[1735558301476,3.2078,3422.1,3422.0,0.29275]
[1735558305475,3.2078,3422.1,3421.5,7.49389036]
[1735558305677,0.29276,3422.0,3421.9,0.29276]
[1735558306380,0.29278,3421.8,3421.7,0.29278]
[1735558306781,0.88197,3421.9,3421.8,0.29278]
[1735558307082,0.5892,3421.9,3421.8,0.29278]
[1735558307281,0.88197,3421.9,3421.8,0.29278]
[1735558307579,0.5892,3421.9,3421.8,0.29278]
[1735558308891,0.88197,3421.9,3421.8,0.29278]
[1735558309083,0.5892,3421.9,3421.5,1.8173]
[1735558309788,0.29278,3421.8,3421.7,0.29278]
[1735558313489,0.29278,3421.8,3421.4,10.36719036]
[1735558313695,0.2928,3421.5,3421.4,10.36720036]
[1735558313897,0.2928,3421.5,3421.4,7.15940036]
[1735558314092,0.2928,3421.5,3421.4,6.86659036]
[1735558315297,0.29284,3421.1,3421.0,6.86659036]
[1735558315890,2.21004,3421.1,3421.0,6.86659036]
[1735558316895,2.21004,3421.1,3420.5,11.39298936]
[1735558316896,1.9172,3421.1,3420.5,6.86659036]
[1735558317200,0.29287,3420.7,3420.6,0.29288]
[1735558317389,1.9172,3421.1,3420.5,6.86659036]
[1735558317588,0.29288,3420.7,3420.6,0.29288]
[1735558317793,1.9172,3421.1,3420.6,0.29287]
[1735558317994,0.29287,3420.7,3420.6,0.29287]
[1735558318399,1.9172,3421.1,3420.4,3.2078]
[1735558318593,0.29285,3420.9,3420.8,0.29286]
[1735558320698,1.9172,3421.1,3420.5,2.33663756]
[1735558320892,3.2078,3421.2,3420.5,2.33663756]
[1735558321095,3.2078,3421.2,3421.1,0.29284]
[1735558321805,3.43900826,3421.5,3421.4,0.29281]
[1735558322906,3.2078,3421.7,3421.6,0.29279]
[1735558323098,3.50058,3421.7,3421.6,0.29279]
[1735558323594,3.50058,3421.7,3421.3,0.29282]
[1735558323595,0.29281,3421.4,3421.3,0.29282]
[1735558323998,5.54443756,3421.7,3420.9,3.8495]
[1735558324193,0.29286,3420.8,3420.6,0.29287]
[1735558324401,0.29286,3420.8,3420.7,7.15946036]
[1735558325308,0.5813,3421.1,3420.7,6.86659036]
[1735558325496,0.29286,3420.8,3420.7,7.15945036]
[1735558325700,0.29286,3420.9,3420.8,0.29286]
[1735558326101,0.29286,3420.9,3420.8,2.33663756]
[1735558326296,0.29286,3420.9,3420.8,2.62949756]
[1735558327898,0.29285,3421.0,3420.9,0.29285]
[1735558328902,3.5006,3421.6,3421.0,0.29284]
[1735558329205,3.5006,3421.6,3421.3,2.33663756]
[1735558329403,3.2078,3421.6,3421.5,0.2928]
[1735558329808,3.50059,3421.6,3421.5,0.2928]
[1735558331009,3.2078,3421.6,3421.5,0.2928]
[1735558331209,3.50059,3421.6,3421.5,0.2928]
[1735558332714,3.2078,3421.6,3421.3,2.33663756]
[1735558333008,0.29281,3421.5,3421.4,0.29281]
[1735558333406,3.5006,3421.6,3421.5,0.2928]
[1735558333609,3.2078,3421.6,3421.5,0.2928]
[1735558333802,3.50059,3421.6,3421.5,0.2928]
[1735558334711,3.2078,3421.6,3421.3,2.33663756]
[1735558334915,0.29281,3421.5,3421.4,0.29281]
[1735558335911,3.2078,3421.6,3421.0,3.25217756]
[1735558336212,3.2078,3421.6,3421.3,0.29282]
[1735558336516,0.29283,3421.3,3421.2,0.29283]
[1735558337209,3.2078,3421.6,3421.0,2.95933756]
[1735558337409,0.29284,3421.2,3421.1,0.29283]
[1735558337915,0.29284,3421.2,3421.0,2.95933756]
[1735558337916,3.2078,3421.6,3421.0,2.95933756]
[1735558338109,0.29283,3421.3,3421.2,0.29282]
[1735558338907,3.2078,3421.6,3421.0,2.95933756]
[1735558339106,0.2928,3421.5,3421.4,0.29281]
[1735558339914,3.2078,3421.6,3421.0,2.95933756]
[1735558340116,0.29282,3421.4,3421.3,0.29282]
[1735558340613,3.2078,3421.6,3421.0,2.95933756]
[1735558340815,0.29283,3421.3,3421.2,0.29282]
[1735558342812,0.29284,3421.2,3421.1,0.29284]
[1735558343217,0.29283,3421.3,3421.2,0.29282]
[1735558344015,0.29283,3421.3,3421.0,2.95933756]
[1735558344016,0.29282,3421.4,3421.3,0.29282]
[1735558344218,3.2078,3421.6,3421.5,0.2928]
[1735558345725,3.43900826,3421.8,3421.7,0.29279]
[1735558345921,3.43900826,3421.8,3421.7,5.83722756]
[1735558346319,3.43900826,3422.1,3422.0,0.29276]
[1735558346819,3.43900826,3422.1,3422.0,2.33663756]
[1735558347519,3.43900826,3422.1,3422.0,2.62939756]
[1735558348217,3.43900826,3422.1,3422.0,2.33663756]
[1735558348421,4.4734,3422.1,3421.7,2.33663756]
[1735558348617,0.29277,3421.9,3421.7,2.62942756]
[1735558349017,0.29277,3422.0,3421.8,0.29277]
[1735558349620,4.4734,3422.1,3421.7,2.33663756]
[1735558349924,0.29278,3421.9,3421.7,2.62941756]
[1735558350121,6.77098569,3422.1,3421.7,2.33663756]
[1735558350323,6.77098569,3422.1,3421.9,0.29277]
[1735558350324,0.29276,3422.0,3421.9,0.29277]
[1735558350627,6.77098569,3422.1,3421.7,2.33663756]
[1735558351124,4.4734,3422.1,3422.0,2.62939756]
[1735558352631,4.76615,3422.1,3422.0,2.62939756]
[1735558353016,4.4734,3422.1,3422.0,2.62939756]
[1735558353429,3.2078,3422.1,3422.0,2.62939756]
[1735558354327,2.29818683,3422.2,3422.1,0.29275]
[1735558354530,2.29818683,3422.2,3422.1,0.91855]
[1735558355821,2.29818683,3422.2,3422.1,1.51705]
[1735558356026,2.29818683,3422.4,3422.3,0.29274]
[1735558356225,2.29818683,3422.4,3422.3,2.62937756]
[1735558357423,3.2078,3422.5,3422.4,0.29273]
[1735558357826,2.29818683,3422.7,3422.6,0.29271]
[1735558358026,2.29818683,3422.7,3422.6,2.62934756]
[1735558359327,3.73169826,3422.9,3422.8,0.29269]
[1735558359328,2.29818683,3422.9,3422.8,0.29269]
[1735558360829,2.29818683,3422.9,3422.6,2.33663756]
[1735558360830,3.2078,3423.0,3422.9,0.29268]
[1735558361127,3.2078,3423.0,3422.3,12.41102792]
[1735558361323,0.29273,3422.4,3422.3,12.41102792]
[1735558361527,0.29273,3422.4,3422.3,9.49596792]
[1735558361727,0.29273,3422.4,3422.3,7.15933036]
[1735558361926,0.29272,3422.5,3422.4,0.29272]
[1735558362731,3.2078,3422.5,3421.9,3.2078]
[1735558362928,0.29277,3421.9,3421.8,0.29277]
[1735558363324,3.2078,3422.5,3421.7,6.86659036]
[1735558363531,0.5955,3421.8,3421.7,7.15938036]
[1735558364029,0.5955,3421.8,3421.7,0.29279]
[1735558364232,0.5955,3421.8,3421.7,2.62942756]
[1735558366533,0.88828,3421.8,3421.6,0.29279]
[1735558366733,0.88828,3421.8,3421.7,0.29279]
[1735558367131,0.5955,3421.8,3421.7,0.29279]
[1735558367932,0.5955,3421.8,3421.5,3.8082]
[1735558367933,0.29279,3421.7,3421.5,3.8082]
[1735558368132,0.29279,3421.7,3421.6,0.29279]
[1735558368534,0.88829,3421.8,3421.6,0.29279]
[1735558369540,0.5955,3421.8,3421.7,0.29279]
[1735558370041,0.29279,3421.7,3421.6,0.29279]
[1735558370341,0.29279,3421.7,3421.4,2.33663756]
[1735558370342,0.2928,3421.5,3421.4,2.33663756]
[1735558370537,3.5006,3421.5,3421.4,2.33663756]
[1735558370738,3.2078,3421.5,3421.4,0.29281]
[1735558370939,3.5006,3421.5,3421.4,0.29281]
[1735558371143,4.7732,3421.5,3421.4,0.29281]
[1735558371342,4.4804,3421.5,3421.4,0.29281]
[1735558379453,3.2078,3421.5,3421.4,0.29281]
[1735558379658,3.2078,3421.5,3421.4,2.62944756]
[1735558379861,2.89368683,3421.8,3421.7,0.29279]
[1735558380157,2.29818683,3421.8,3421.7,0.29279]
[1735558380660,3.8298,3421.9,3421.8,0.29278]
[1735558383654,2.29818683,3422.0,3421.5,5.19231]
[1735558383855,2.29818683,3422.0,3421.9,0.29277]
[1735558384458,2.59094683,3422.0,3421.9,0.29277]
[1735558384662,1.2421,3422.2,3421.5,12.05890036]
[1735558384953,1.2421,3422.2,3421.6,0.73199]
[1735558385262,1.2421,3422.2,3422.1,0.29275]
[1735558386155,3.54028683,3422.2,3422.1,0.29275]
[1735558386958,2.91338683,3422.2,3422.1,0.29275]
[1735558387453,0.6152,3422.2,3422.1,0.29275]
[1735558388760,2.91338683,3422.2,3421.7,1.183]
[1735558389060,2.91338683,3422.2,3421.8,0.29277]
[1735558389061,0.29278,3421.9,3421.8,0.29277]
[1735558389259,3.50058,3421.8,3421.7,0.29279]
[1735558389457,0.29279,3421.7,3421.6,7.15938036]
[1735558389659,0.91669,3421.7,3421.6,7.15938036]
[1735558390059,0.91669,3421.7,3421.6,6.86659036]
[1735558390460,0.2928,3421.5,3421.4,6.86659036]
[1735558392264,5.00477541,3421.5,3421.2,0.29282]
[1735558392460,0.29283,3421.2,3421.1,0.29283]
[1735558392866,3.2078,3421.3,3420.5,9.85462792]
[1735558393066,0.645,3421.1,3420.5,9.85462792]
[1735558393266,0.29285,3421.0,3420.9,0.29285]
[1735558393458,0.29286,3420.8,3420.7,7.15946036]
[1735558393662,0.94386,3420.9,3420.8,0.29286]
[1735558394162,0.29286,3420.8,3420.7,7.15946036]
[1735558394464,0.651,3420.9,3420.8,0.29286]
[1735558394667,0.94385,3420.9,3420.8,0.29286]
[1735558396160,0.651,3420.9,3420.4,3.2078]
[1735558396373,0.29288,3420.6,3420.5,0.29289]
[1735558397067,3.2078,3420.7,3420.2,6.86659036]
[1735558397270,0.29291,3420.4,3420.1,7.50829036]
[1735558397862,0.29291,3420.4,3420.3,0.29291]
[1735558398261,3.2078,3420.7,3420.3,0.29291]
[1735558398469,0.29289,3420.5,3420.4,0.29289]
[1735558398669,0.29289,3420.6,3420.4,0.29289]
[1735558398870,3.2078,3420.7,3420.2,2.33663756]
[1735558399070,3.2078,3420.7,3420.3,0.2929]
[1735558399271,0.2929,3420.4,3420.2,2.62954756]
[1735558399571,0.2929,3420.4,3420.2,0.29291]
[1735558399772,0.2929,3420.4,3420.3,0.29291]
[1735558400569,0.29288,3420.6,3420.4,0.29289]
[1735558401065,0.29289,3420.5,3420.4,0.29289]
[1735558401674,3.2078,3420.7,3420.1,0.6417]
[1735558401873,3.2078,3420.7,3420.6,0.29288]
[1735558403978,3.50064,3421.2,3420.5,2.33663756]
[1735558404164,0.29286,3420.9,3420.6,0.29288]
[1735558404369,0.29286,3420.9,3420.7,0.29287]
[1735558404575,3.2078,3420.8,3420.7,0.29287]
[1735558404776,0.29286,3420.9,3420.8,0.29286]
[1735558404978,3.2078,3421.2,3420.5,2.33663756]
[1735558405282,0.29285,3421.1,3420.9,0.29285]
[1735558405481,0.29285,3421.0,3420.9,0.29285]
[1735558406373,0.29284,3421.1,3420.6,1.02509]
[1735558406582,0.29284,3421.1,3421.0,0.29285]
[1735558406977,3.2078,3421.2,3420.7,1.2565]
[1735558407171,1.2538,3421.3,3420.1,6.86659036]
[1735558407172,3.2078,3420.8,3420.1,6.86659036]
[1735558407378,3.2078,3420.8,3420.4,0.29289]
[1735558407379,0.29289,3420.5,3420.4,0.29289]
[1735558408776,0.6572,3420.6,3420.2,0.6051]
[1735558408976,3.2078,3420.8,3420.2,2.94173756]
[1735558409177,3.50066,3420.8,3420.7,0.29287]
[1735558410174,3.2078,3420.8,3420.7,0.29287]
[1735558413078,3.8668,3421.2,3420.4,3.8332]
[1735558413274,0.29286,3420.9,3420.8,0.29286]
[1735558413481,3.8668,3421.2,3420.4,3.8332]
[1735558413977,3.50067,3420.8,3420.7,0.29287]
[1735558414177,3.50067,3420.8,3420.4,0.6254]
[1735558414178,3.2078,3420.8,3420.4,0.6254]
[1735558414381,3.2078,3420.8,3420.7,0.29287]
[1735558415681,0.29288,3420.6,3420.5,0.29289]
[1735558416280,3.2078,3420.8,3420.2,5.1896768]
[1735558416485,0.29291,3420.3,3420.2,0.6051]
[1735558416781,0.29291,3420.3,3420.2,0.89801]
[1735558416984,0.2929,3420.4,3420.3,0.2929]
[1735558417683,3.2078,3420.4,3420.0,5.2130768]
[1735558417879,0.29292,3420.2,3420.0,0.6285]
[1735558418078,0.29291,3420.3,3420.0,0.92143]
[1735558418282,0.29292,3420.2,3420.0,0.92143]
[1735558418582,5.54443756,3420.4,3420.0,0.6285]
[1735558418885,5.54443756,3420.4,3420.1,0.29292]
[1735558419086,0.29291,3420.3,3420.2,0.29291]
[1735558419273,0.29291,3420.3,3420.0,0.6285]
[1735558419478,0.29291,3420.2,3420.1,0.29292]
[1735558419982,5.54443756,3420.4,3420.0,0.6285]
[1735558420284,0.29294,3419.9,3419.8,0.5997]